Cogmind - Beta 13 @@@ ROGUE MODE // 2024.07.07 @ 23:10:00 Player: gigi283 Result: Destroyed by D-53 Grenadier with Mini Grenade Launcher Performance ------------- Evolutions (0) 0 Regions Visited (2) 400 Robots Destroyed (24) 120 Value Destroyed (445) 445 Prototype IDs (0) 0 Alien Tech Used (0) 0 Bonus (0) 0 TOTAL SCORE: 965 Bonus ------- None Cogmind --------- Core Integrity 0/250 Matter 289/300 Energy 100/100 System Corruption 0% Temperature Cool (0) Movement Core (250) Ox4 Location -10/Mines Parts ------- > --- POWER (1) -------- (None) > --- PROPULSION (2) --- (None) > --- UTILITY (2) ------ Medium Storage Unit Signal Interpreter > --- WEAPON (2) ------- Light Assault Rifle Grenade Launcher > --- INVENTORY (10) --- Light Ion Engine Improved Heat Sink Sensor Array Transport Network Coupler Targeting Computer Particle Gun Peak State ------------ > --- POWER ------------ Light Nuclear Core > --- PROPULSION ------- Light Treads Light Treads > --- UTILITY ---------- Medium Storage Unit Signal Interpreter > --- WEAPON ----------- Particle Gun Light Assault Rifle > --- INVENTORY -------- Ion Engine Light Ion Engine Sensor Array Transport Network Coupler Targeting Computer Grenade Launcher [Rating: 10] Favorites ----------- Power Light Nuclear Core Engine Ion Engine Power Core Light Nuclear Core Propulsion Light Treads Treads Light Treads Utility Medium Storage Unit Storage Medium Storage Unit Processor Signal Interpreter Weapon Light Assault Rifle Energy Gun Particle Gun Ballistic Gun Light Assault Rifle Launcher Grenade Launcher Build | -11 -10 -10 ------- Run | Yrd Mat Min Slots Evolved . | . . . Power . | . . . Propulsion . | . . . Utility . | . . . Weapon . | . . . Parts Attached 29 | 6 19 4 Power 6 | 1 5 . Engine 5 | 1 4 . Core 1 | . 1 . Reactor . | . . . Propulsion 9 | 2 7 . Treads 9 | 2 7 . Leg . | . . . Wheel . | . . . Hover . | . . . Flight . | . . . Utility 3 | 1 2 . Device . | . . . Storage 2 | 1 1 . Processor 1 | . 1 . Hackware . | . . . Protection . | . . . Artifact . | . . . Weapon 11 | 2 5 4 Energy Gun 1 | . 1 . Energy Cannon . | . . . Ballistic Gun 8 | 2 4 2 Ballistic Cannon . | . . . Launcher 2 | . . 2 Special Weapon . | . . . Impact Weapon . | . . . Slashing Weapon . | . . . Piercing Weapon . | . . . Special Melee Weapon . | . . . Unidentified Prototypes . | . . . Parts Lost 5 | . 1 4 Power 1 | . . 1 Propulsion 2 | . . 2 Utility . | . . . Weapon 2 | . 1 1 Highest Loss Streak 2 | . 1 2 To Critical Strikes . | . . . Average Slot Usage (%) 94 | . 94 94 Engine 7 | . 11 . Core 6 | . 2 14 Treads 25 | . 27 23 Storage 14 | . 14 14 Processor 11 | . 10 14 Energy Gun 6 | . 2 14 Ballistic Gun 19 | . 25 10 Launcher 1 | . . 3 Naked Turns . | . . . Heaviest Build 21 | 11 19 21 Greatest Support 40 | 40 40 40 Greatest Overweight (x) 5 | 1 5 . Average Overweight (x) . | . . . Largest Inventory Capacity 10 | 8 10 10 Average Capacity 9 | 7 9 10 Most Carried 9 | . 9 7 Average Carried 4 | . 4 5 Final Capacity 10 | 8 10 10 Final Carried 6 | . 5 6 Class Distribution -------------------- 50% | Scavenger-Mutant 49% | Mutant Dominant Class ---------------- Mutant | -10/Materials Scavenger-Mutant | -10/Mines Resources | -11 -10 -10 ----------- Run | Yrd Mat Min Matter Collected 838 | 204 506 128 Remotely . | . . . Salvage Created 759 | . 546 213 Parts 42 | . 28 14 Haulers Intercepted 2 | . 2 . Recyclers Shooed 2 | . . 2 Parts Field Recycled . | . . . Retrieved Matter . | . . . Parts Self-Destructed . | . . . Prevented . | . . . Kills | -11 -10 -10 ------- Run | Yrd Mat Min Combat Hostiles Destroyed 23 | . 9 14 Guns 17 | . 9 8 AOE 6 | . . 6 Classes Destroyed 7 | . 6 1 Worker 2 | . 1 1 Hauler 2 | . 2 . Recycler 1 | . 1 . Watcher 2 | . 2 . Swarmer 9 | . 3 6 Grunt 8 | . 6 2 Assembled 6 | . . 6 Best Kill Streak 5 | . 4 5 Combat Bots Only 5 | . 4 5 Max Kills in Single Turn 5 | . 1 5 Gunslinging . | . . . Exploded 5 | . . 5 Melee . | . . . Uniques/NPCs Destroyed . | . . . Combat | -11 -10 -10 -------- Run | Yrd Mat Min Hostile Shots Fired 131 | . 71 60 Missed 33 | . 18 15 Damage Taken 1179 | . 672 507 Core 278 | . 183 95 Absorbed by Shields . | . . . Regen/Repaired (Parts) 49 | . 49 . Core Remaining (%) 100 | 100 . . Volleys Fired 117 | . 73 44 Largest 2 | . 2 2 Hottest 95 | . 85 95 Shots Fired 202 | . 138 64 Gun 197 | . 138 59 Cannon . | . . . Launcher 5 | . . 5 Special . | . . . Kinetic 167 | . 137 30 Thermal 30 | . 1 29 Explosive 5 | . . 5 Electromagnetic . | . . . Robot Hit Streak 10 | . 10 8 Robot Miss Streak 4 | . 4 3 Penetration Max . | . . . Secondary Targets 2 | . 2 . Max Gunslinging Chain 1 | . 1 . Shots Hit Robots 114 | . 77 37 Core Hits 58 | . 31 27 Critical Kills 1 | . 1 . Critical Parts Destroyed . | . . . Critical Strikes 2 | . 1 1 Burn 1 | . . 1 Destroy 1 | . 1 . Melee Attacks . | . . . Impact . | . . . Slashing . | . . . Piercing . | . . . Sneak Attacks . | . . . Combat Hostiles . | . . . Follow-up Attacks . | . . . Damage Inflicted 1546 | . 813 733 Guns 1211 | . 811 400 Cannons . | . . . Explosions 332 | . . 332 Melee . | . . . Ramming 3 | . 2 1 Kinetic 950 | . 797 153 Thermal 261 | . 14 247 Explosive 332 | . . 332 Electromagnetic . | . . . Impact . | . . . Slashing . | . . . Piercing . | . . . Highest Corruption . | . . . Average Corruption . | . . . Corruption Purged . | . . . Corruption Blocked . | . . . Overload Shots . | . . . Overflow Damage . | . . . Projectiles . | . . . Explosions . | . . . Melee . | . . . Knockbacks . | . . . Impact . | . . . Kinetic . | . . . Secondary . | . . . Self-Inflicted Damage . | . . . Shots . | . . . Rammed 3 | . 1 2 Targets Rammed 3 | . 1 2 Kicked . | . . . Crushed . | . . . Highest Temperature 489 | . 44 489 Average Temperature 116 | . 15 150 Received Heat Transfer 330 | . 285 45 Effects 5 | . . 5 Shutdowns 2 | . . 2 Interference 1 | . . 1 Matter Decay 1 | . . 1 Damage (major) 1 | . . 1 Siege Activations . | . . . Robots Corrupted . | . . . Combat Hostiles . | . . . Parts Fried . | . . . Impact Corruptions . | . . . Robots Melted . | . . . Combat Hostiles . | . . . Parts Melted 2 | . . 2 Heat Transferred 666 | . 37 629 Parts Sabotaged . | . . . Parts Stolen . | . . . Parts Stripped . | . . . Power Chain Reactions . | . . . Alert | -11 -10 -10 ------- Run | Yrd Mat Min Peak Influence 168 | . 148 168 Initial 24 | . . 24 Average 48 | . 47 56 Maximum Alert Level . | . . . Low Security (%) 100 | 100 100 100 Level 1 . | . . . Level 2 . | . . . Level 3 . | . . . Level 4 . | . . . Level 5 . | . . . High Security . | . . . Max Security . | . . . Squads Dispatched 2 | . 2 . Investigation 1 | . 1 . Extermination . | . . . Reinforcement 1 | . 1 . Assault . | . . . Garrison . | . . . Intercept . | . . . Searches Triggered . | . . . Construction Impeded . | . . . Haulers Reinforced . | . . . Active Scanning Responses . | . . . Cargo Convoy Interrupts . | . . . Stealth | -11 -10 -10 --------- Run | Yrd Mat Min Distress Signals 1 | . 1 . Communications Jammed . | . . . Distress Signals . | . . . Times Spotted 39 | . 22 17 Peak Tracking Total 8 | . 4 8 Tactical Retreats 1 | . . 1 Traps | -11 -10 -10 ------- Run | Yrd Mat Min Traps Triggered 6 | . 6 . Indirectly . | . . . Trap Hack Attempts . | . . . Triggered . | . . . Disarmed . | . . . Reprogrammed . | . . . Reused . | . . . Traps Extracted . | . . . Installed . | . . . Triggered . | . . . Machines | -11 -10 -10 ---------- Run | Yrd Mat Min Machines Disabled . | . . . Max in Single Turn . | . . . Machines Repaired . | . . . Machines Dismantled . | . . . Machines Sabotaged . | . . . Overloaded Fab Kills . | . . . Hacking | -11 -10 -10 --------- Run | Yrd Mat Min Machines Accessed 9 | . 9 . Terminals 7 | . 7 . Fabricators . | . . . Repair Stations 1 | . 1 . Recycling Units 1 | . 1 . Scanalyzers . | . . . Garrison Access . | . . . Total Hacks 24 | . 24 . Successful 21 | . 21 . Failed 3 | . 3 . Catastrophic . | . . . Database Lockouts . | . . . Manual 9 | . 9 . Terminals 13 | . 13 . Fabricators . | . . . Repair Stations 2 | . 2 . Recycling Units 9 | . 9 . Scanalyzers . | . . . Garrison Access . | . . . Terminal Hacks 4 | . 4 . Robot Analysis 1 | . 1 . Alert Level 1 | . 1 . Locate Traps 1 | . 1 . Dispatch Records 1 | . 1 . Fabricator Hacks . | . . . Repair Station Hacks 2 | . 2 . Scan Component 1 | . 1 . Repair 1 | . 1 . Recycling Unit Hacks 8 | . 8 . Recycle Component 3 | . 3 . Process 2 | . 2 . Report Inventory 3 | . 3 . Scanalyzer . | . . . Garrison Access Hacks . | . . . Unauthorized Hacks 7 | . 7 . Terminals 7 | . 7 . Botnet 7 | . 7 . Fabricators . | . . . Repair Stations . | . . . Recycling Units . | . . . Scanalyzers . | . . . Garrison Access . | . . . Data Cores Recovered . | . . . Used . | . . . Hacking Detections 6 | . 6 . Full Trace Events 1 | . 1 . Feedback Events . | . . . Feedback Blocked . | . . . Robot Schematics Acquired . | . . . Robots Built . | . . . Authchips . | . . . Time . | . . . Total Robot Build Rating . | . . . Part Schematics Acquired . | . . . Parts Built . | . . . Authchips . | . . . Time . | . . . Total Part Build Rating . | . . . Parts Repaired 1 | . 1 . Time 26 | . 26 . Parts Recycled 3 | . 3 . Recycled Matter 169 | . 169 . Retrieved Matter . | . . . Retrieved Components . | . . . Parts Scanalyzed . | . . . Part Schematics Acquired . | . . . Parts Damaged . | . . . Bothacking | -11 -10 -10 ------------ Run | Yrd Mat Min Used RIF Installer . | . . . Robots Hacked . | . . . Non-combat . | . . . Combat . | . . . Robot Hacks Applied . | . . . Relay Couplers Released . | . . . Fabnet Peak Effective % . | . . . Robots Rewired . | . . . Allies Hacked . | . . . Hacks Repelled . | . . . Allies | -11 -10 -10 -------- Run | Yrd Mat Min Total Allies . | . . . Largest Group . | . . . Highest-Rated Group . | . . . Highest-Rated Ally . | . . . Total Orders . | . . . Ally Attacks . | . . . Total Damage . | . . . Kills . | . . . Allies Corrupted . | . . . Allies Melted . | . . . Intel | -11 -10 -10 ------- Run | Yrd Mat Min Robot Analysis Total 1 | . 1 . Derelict Logs Recovered 2 | . . 2 Drone Launches . | . . . Drone Recoveries . | . . . Exploration | -11 -10 -10 ------------- Run | Yrd Mat Min Turns Passed 2688 | 82 1679 927 Spaces Moved 1394 | 49 882 463 Core 11 | 6 5 . Treads 1383 | 43 877 463 Legs . | . . . Wheels . | . . . Hover . | . . . Flight . | . . . Fastest Speed 50 | 50 160 160 Average Speed 160 | 150 160 160 Slowest Speed 300 | 160 300 160 Overloaded Moves . | . . . Propulsion Burnouts . | . . . Robots Hopped . | . . . Cave-ins Triggered . | . . . Exploration Rate (%) 63 | 4 98 89 Regions Visited 2 Branch Regions 1 Pre-discovered Areas 1 | . . 1 Known Exits Taken 1 | . 1 . Unknown Exits Taken 1 | 1 . . Scrap Searched . | . . . Spaces Dug . | . . . Terrain Destroyed 48 | . . 48 Melee . | . . . Projectile . | . . . AOE 48 | . . 48 Terrain Rammed . | . . . Walls Destroyed . | . . . Machines Disabled . | . . . Actions | -11 -10 -10 --------- Run | Yrd Mat Min Total 1658 | 54 1014 590 Wait 101 | . 26 75 Move 1392 | 48 881 463 Hop . | . . . Pick Up 11 | . 9 2 Fast Attach 18 | 6 12 . Attach 3 | . 2 1 Detach . | . . . Swap 8 | . 5 3 Drop 5 | . 5 . Fire 117 | . 73 44 Melee . | . . . Ram . | . . . Kick . | . . . Crush 3 | . 1 2 Escape Stasis . | . . . Rewire . | . . . Trap . | . . . Miscellaneous . | . . . Route ------- -11/Scrapyard -10/Materials (discovered 5 exits: *Mat x3 / *Min / [*Sub]) -10/Mines (discovered 1 exit: *Mat) History --------- Turn | Location | Event 9 | -11/Scrapyard | Discovered new exit (range 14) 83 | -11/Scrapyard | Entered Materials 312 | -10/Materials | Build established: Mutant 544 | -10/Materials | Discovered new exit (range 15) 571 | -10/Materials | Identified exit to Materials 638 | -10/Materials | Repaired Ion Engine 1004 | -10/Materials | Discovered exit to Materials (range 16) 1285 | -10/Materials | Discovered new exit (range 16) 1481 | -10/Materials | Core integrity fell below 50% 1619 | -10/Materials | Discovered exit to Materials (range 7) 1646 | -10/Materials | Build established: Scavenger-Mutant 1730 | -10/Materials | Discovered new exit (range 13) 1755 | -10/Materials | Identified exit to Mines 1762 | -10/Materials | Entered Mines 2134 | -10/Mines | Assembled infested the area 2139 | -10/Mines | Assisted by a Guerilla fighting off Assembled 2286 | -10/Mines | Core integrity fell below 20% 2305 | -10/Mines | Learned location of Zion (-6) 2549 | -10/Mines | Discovered exit to Materials (range 13) 2568 | -10/Mines | Learned 4 Materials zone layouts 2689 | -10/Mines | Destroyed by D-53 Grenadier with Mini Grenade Launcher Last Messages --------------- 02407_ S-10 Pest heat damages Lgt. Assault Rifle, Flight Unit. 02407_ Flight Unit melted. 02407_ S-10 Pest destroyed. 02409_ Power failure, Lgt. Nuclear Core shutdown. 02409_ Acquired 16 matter. 02410_ Overheating: Matter decay (-39). 02411_ Acquired 12 matter. 02414_ Acquired Lgt. Assault Rifle. 02484_ K-01 Serf collects debris. 02497_ U-05 Engineer builds a Wall. 02500_ U-05 Engineer lays Concrete. 02502_ U-05 Engineer builds a Wall. 02511_ Acquired 55 matter. 02549_ EXIT=FOUND: MATERIALS 02568_ Acquired derelict log, extracted data. Data stored: Materials zone layouts (x4). 02688_ Lgt. Nuclear Core destroyed. 02689_ Lgt. Treads destroyed. Map ----- +----------------------------------------------------+ | | | | | | | | | | | | | | | | | | | | | | | | | | | | | | | | | ?????????????????????????????????????????????????? | | ???######?????????????????####???????????????????? | | ??## ##??????????????## ##?????######???????? | | ??# #??????????????# #????## ##??????? | | ??# #??????????????# #????# ######?? | | ??# #???????????????# ##????# ## #?? | | ???# #???????????????## #?????# #?? | | ???## ##??#####???????## #?????##### #?? | | ????# ##### ##??????# ##????????## ##? | | ????# ##??#### @ #????????## ## | | ????# #### # ##????????# | | ????##### #????????# """ | | ????????## #????????# """ | | ?????????# d #####????????## """ | | ????????## # ##?????????????## ## | | ???????## ## d #####???????????????##### ### | | ???????# ### ????????????????????????####?? | | ??????# ##?# #????######????????????????????? | | ??????# #??## #????## ####????????#######?## | | #?????# #???## ###### #???????## ### | | ##### #????# ## #????#### """ | | ##????# ## #????# """ | | ??????# ## ## ###????# ## """ | | #??????# #### ### #??????# ## | | #?????### #?# #?# #??????# ### ##### | | #??????# #?# ##?# #??????# #?# ##???### | | ##?????# ###?## ##??# #??????# ### #??????? | | """ ####### #????###????# #??????# #??????? | | """ ## #???????????# ####???# #####??????? | | """ ### #???????????# =#???# #??????????? | | ##?# ####???????????####%#???#%#??????????? | | #??# #?????????????????# #####=#??????????? | | # #??# #?????????????????# %=%*#??????????? | | ## #??# #?????????????????#######[#??????????? | +----------------------------------------------------+ Best States ------------- Heat Dissipation 25 Energy Generation 14 Energy Capacity 250 Matter Stores 300 Matter Capacity 300 Sight Range 16 Terrain Scan Density 10 Evasion (%) 40 Recoil Reduction 2 Item Schematics ----------------- None Robot Schematics ------------------ None Fabricated ------------ Nothing Alien Tech Used ----------------- None Achievements -------------- None Challenges ------------ None Game ------ Seed TractorArmorThermoblaster Manual? 0 Play Time 00:18:16 Cumulative 24.5 hours Start 2024.07.07 @ 22:44:57 End 2024.07.07 @ 23:10:00 Sessions 1 Manual Loads 0 Difficulty Rogue Special Mode None Game No. 36 Rogue 36 Adventurer 0 Explorer 0 Win Type - Total 0 Types 0/0/0/0/0/0/0/0/0 Lore% 14 Gallery% 23 Achievement% 20 Wizard Run 0 Options --------- Layout 2 ASCII 0 Keyboard 0 Movement Arrows Keybinds 0 Fullscreen 2 Font 24/Crisp Map View 50x44 Zoom Use 0% Tactical HUD 1 Map Filters NONE Filters NONE Steam 1 RUN: 936f463e-b83a-4844-8971-27e0e7dd41af